bitfinex-derivatives/quotes_ETHF0:USTF0_20250405
["timestamp","ask_amount","ask_price","bid_price","bid_amount"]
[1743895155998,21.77828841,1800.5,1800.4,3.70108012]
[1743895157904,21.77828841,1800.5,1800.4,3.69993481]
[1743895158503,1.48844074,1800.6,1800.5,0.77785]
[1743895158706,1.48844074,1800.6,1800.5,4.73848481]
[1743895159208,1.48844074,1800.6,1800.5,6.17288481]
[1743895161410,1.48844074,1800.6,1800.5,5.42005]
[1743895161611,1.48844074,1800.6,1800.5,6.17166286]
[1743895162406,1.48844074,1800.6,1800.5,4.73726286]
[1743895163306,1.48844074,1800.6,1800.5,4.73702182]
[1743895166910,1.48844074,1800.6,1800.5,3.95917182]
[1743895167113,4.76625074,1800.6,1800.5,3.95917182]
[1743895167808,2.26625074,1800.6,1800.5,3.95917182]
[1743895169816,4.76625074,1800.6,1800.5,3.95917182]
[1743895170615,4.76625074,1800.6,1800.5,3.95963961]
[1743895172217,2.26625074,1800.6,1800.5,3.95963961]
[1743895172611,2.26625074,1800.6,1800.5,4.73748961]
[1743895172810,1.48844074,1800.6,1800.5,4.73748961]
[1743895173715,2.26625074,1800.6,1800.5,3.95963961]
[1743895174419,2.26625074,1800.6,1800.5,0.75183961]
[1743895177907,0.77785,1800.5,1800.4,3.2078]
[1743895178112,2.26075,1800.5,1800.4,3.96003053]
[1743895179819,2.26075,1800.5,1800.4,0.75223053]
[1743895180014,2.26075,1800.5,1800.4,3.96003053]
[1743895180416,2.26075,1800.5,1800.4,4.73793053]
[1743895180814,1.4829,1800.5,1800.4,4.73793053]
[1743895181020,1.4829,1800.5,1800.4,7.63753053]
[1743895181620,1.4829,1800.5,1800.4,7.63786251]
[1743895184127,1.4829,1800.5,1800.4,4.43006251]
[1743895184424,1.4829,1800.5,1800.4,7.63786251]
[1743895187020,1.4829,1800.5,1800.4,7.63808775]
[1743895190734,1.4829,1800.5,1800.4,7.63826172]
[1743895191936,0.00834074,1800.6,1800.4,7.63826172]
[1743895191937,0.00834074,1800.6,1800.5,0.77785]
[1743895192233,1.50584074,1800.6,1800.5,3.04751172]
[1743895195634,1.50584074,1800.6,1800.5,0.75296172]
[1743895195836,1.50584074,1800.6,1800.5,1.53081172]
[1743895196136,1.50584074,1800.6,1800.5,2.25311172]
[1743895197828,1.50584074,1800.6,1800.5,3.73537427]
[1743895200934,0.00834074,1800.6,1800.5,3.73537427]
[1743895201335,0.00834074,1800.6,1800.5,3.73535046]
[1743895204932,0.00834074,1800.6,1800.5,3.73521453]
[1743895206742,0.00834074,1800.6,1800.5,3.73530991]
[1743895207742,0.00834074,1800.6,1800.5,6.94310991]
[1743895210543,0.00834074,1800.6,1800.5,6.94331597]
[1743895212244,0.00834074,1800.6,1800.5,6.94342734]
[1743895213944,0.00834074,1800.6,1800.5,3.73562734]
[1743895214143,0.00834074,1800.6,1800.5,6.94342734]
[1743895217655,0.00834074,1800.6,1800.5,6.9433849]
[1743895219558,0.00834074,1800.6,1800.5,6.9433942]
[1743895221156,0.00834074,1800.6,1800.5,3.7355942]
[1743895221658,0.00834074,1800.6,1800.5,6.9433942]
[1743895222058,7.4e-07,1800.6,1800.5,7.9614942]
[1743895222253,7.4e-07,1800.6,1800.5,9.3936942]
[1743895223157,7.4e-07,1800.6,1800.5,6.8936942]
[1743895226765,7.4e-07,1800.6,1800.5,6.89274899]
[1743895230466,7.4e-07,1800.6,1800.5,6.89286915]
[1743895234067,7.4e-07,1800.6,1800.5,3.68506915]
[1743895234267,7.4e-07,1800.6,1800.5,6.89286915]
[1743895234464,7.4e-07,1800.6,1800.5,6.89296062]
[1743895235967,7.4e-07,1800.6,1800.5,6.89299908]
[1743895237870,7.4e-07,1800.6,1800.5,6.893043]
[1743895241368,7.4e-07,1800.6,1800.5,6.14015]
[1743895241575,7.4e-07,1800.6,1800.5,6.89319474]
[1743895242274,3.2078,1801.3,1800.6,1.9445]
[1743895242477,1.4623,1801.2,1800.8,5.15211]
[1743895242674,1.4623,1801.2,1801.1,0.77759]
[1743895242973,1.4623,1801.2,1801.1,0.75304474]
[1743895243175,3.9623,1801.2,1801.1,0.75304474]
[1743895245175,3.9623,1801.2,1801.1,0.75289407]
[1743895245579,5.4459,1801.2,1801.1,1.53048407]
[1743895245775,5.4459,1801.2,1801.1,0.75289407]
[1743895246079,6.22345,1801.2,1801.1,0.75289407]
[1743895246975,6.22345,1801.2,1801.1,0.75312842]
[1743895248680,6.22345,1801.2,1801.1,0.75332042]
[1743895250479,6.22345,1801.2,1801.1,0.75363845]
[1743895252281,0.77761,1801.1,1800.8,3.98549]
[1743895252485,2.18731,1801.1,1800.9,0.75391779]
[1743895252679,1.49134,1801.0,1800.8,3.98549]
[1743895252875,0.761,1800.9,1800.8,3.98549]
[1743895253077,0.761,1800.9,1800.8,4.73941081]
[1743895253384,2.1707,1800.9,1800.8,4.73941081]
[1743895254082,2.1707,1800.9,1800.8,3.96172081]
[1743895254283,2.1707,1800.9,1800.8,3.9618104]
[1743895254684,2.1707,1800.9,1800.8,4.7395304]
[1743895254886,2.1707,1800.9,1800.8,3.9618104]
[1743895255481,2.94838,1800.9,1800.8,3.9618104]
[1743895256188,2.94838,1800.9,1800.8,3.96180546]
[1743895257792,2.94838,1800.9,1800.8,3.96181398]
[1743895257983,2.94838,1800.9,1800.8,3.96181576]
[1743895258790,2.1707,1800.9,1800.8,3.96181576]
[1743895260293,2.1707,1800.9,1800.8,3.96184984]
[1743895261088,2.1707,1800.9,1800.8,3.96185808]
[1743895261588,2.1707,1800.9,1800.8,4.73957808]
[1743895262585,1.6707,1800.9,1800.8,4.73957808]
[1743895263995,8.15618,1800.9,1800.8,0.75405808]
[1743895265095,4.8785,1800.9,1800.8,1.53177808]
[1743895265393,5.65618,1800.9,1800.8,0.75405808]
[1743895267195,4.8785,1800.9,1800.8,0.75405808]
[1743895267396,4.8785,1800.9,1800.8,1.53177808]
[1743895267598,5.65618,1800.9,1800.8,1.53177808]
[1743895267803,5.65618,1800.9,1800.8,0.75405808]
[1743895270299,0.77777,1800.7,1800.6,1.423]
[1743895270498,0.77777,1800.7,1800.6,3.67346571]
[1743895270902,2.21857,1800.7,1800.6,3.67346571]
[1743895271798,2.21857,1800.7,1800.6,2.9203]
[1743895272102,2.21857,1800.7,1800.6,3.67338712]
[1743895273005,2.21857,1800.7,1800.6,2.17608712]
[1743895273695,2.21857,1800.7,1800.6,3.65372573]
[1743895276603,2.21857,1800.7,1800.6,0.75312573]
[1743895279112,0.77785,1800.5,1800.4,6.90639]
[1743895279306,2.23244,1800.6,1800.4,7.65938904]
[1743895279508,2.23244,1800.6,1800.5,2.21149904]
[1743895282912,2.23244,1800.6,1800.5,0.75299904]
[1743895286515,0.77785,1800.5,1800.4,2.1813]
[1743895286816,2.30555,1800.5,1800.4,2.93419855]
[1743895288417,2.30555,1800.5,1800.4,2.93429642]
[1743895290113,2.30555,1800.5,1800.4,2.1813]
[1743895290323,2.30555,1800.5,1800.4,0.75299113]
[1743895292022,0.7779,1800.4,1800.3,3.93054074]
[1743895292215,2.2161,1800.4,1800.3,6.10163603]
[1743895295622,2.2161,1800.4,1800.3,5.34864074]
[1743895295922,2.2161,1800.4,1800.3,6.10177125]
[1743895296419,2.2161,1800.4,1800.3,0.76147125]
[1743895296823,2.9489,1800.4,1800.3,0.76147125]
[1743895299422,0.77803,1800.1,1800.0,0.723]
[1743895299618,0.77803,1800.1,1800.0,0.70241825]
[1743895299921,0.77807,1800.0,1799.9,3.2078]
[1743895300226,1.51367,1800.0,1799.9,3.2078]
[1743895304218,0.77811,1799.9,1799.8,3.00494074]
[1743895304420,2.20891,1799.9,1799.8,3.00494074]
[1743895305122,2.20891,1799.9,1799.8,1.48894074]
[1743895305624,2.97271,1799.9,1799.8,1.48894074]
[1743895306828,0.77809,1800.0,1799.9,0.77811]
[1743895307020,0.00834074,1800.1,1799.9,0.77811]
[1743895307222,0.78637074,1800.1,1800.0,1.4324]
[1743895310331,2.24027074,1800.1,1800.0,1.4324]
[1743895311433,2.24027074,1800.1,1800.0,2.1792673]
[1743895312132,2.24027074,1800.1,1800.0,2.17927089]
[1743895313934,2.24027074,1800.1,1800.0,2.17946787]
[1743895315730,2.24027074,1800.1,1800.0,2.17964823]
[1743895316936,2.24027074,1800.1,1800.0,0.74724823]
[1743895317433,2.95617074,1800.1,1800.0,0.74724823]
[1743895317631,0.77807,1800.0,1799.9,1.5263]
[1743895317833,2.18147,1800.0,1799.9,2.27360111]
[1743895318433,2.18147,1800.0,1799.9,2.2736733]
[1743895318637,0.77811,1799.9,1799.8,4.69674074]
[1743895318938,2.18151,1799.9,1799.8,4.69674074]
[1743895319137,2.18151,1799.9,1799.8,3.96524074]
[1743895319531,2.18151,1799.9,1799.8,4.71272859]
[1743895319726,2.18151,1799.9,1799.8,3.96524074]
[1743895320033,2.18151,1799.9,1799.8,5.49087519]
[1743895320234,0.77809,1800.0,1799.8,6.91107519]
[1743895320438,0.77809,1800.0,1799.9,2.1536]
[1743895320738,0.77809,1800.0,1799.9,2.90108445]
[1743895320937,2.28149,1800.0,1799.9,2.1536]
[1743895321138,2.28149,1800.0,1799.9,2.90124316]
[1743895321337,2.28149,1800.0,1799.9,2.1536]
[1743895322139,1.5034,1800.0,1799.9,2.93171]
[1743895322339,0.78639074,1800.1,1799.9,2.93171]
[1743895322539,0.78639074,1800.1,1800.0,1.3958]
[1743895322739,0.78639074,1800.1,1800.0,2.84071469]
[1743895323840,0.78639074,1800.1,1800.0,2.84094475]
[1743895326836,0.78639074,1800.1,1800.0,2.0929]
[1743895327036,0.78639074,1800.1,1800.0,2.84194493]
[1743895328449,0.00834074,1800.1,1800.0,3.62001493]
[1743895328638,0.00834074,1800.1,1800.0,6.82781493]
[1743895328837,0.00834074,1800.1,1800.0,6.82775913]
[1743895330534,0.00834074,1800.1,1800.0,6.82742995]
[1743895331040,0.00834074,1800.1,1800.0,6.82743341]
[1743895332346,0.00834074,1800.1,1800.0,6.82716945]
[1743895334246,0.00834074,1800.1,1800.0,6.82711301]
[1743895336049,0.00834074,1800.1,1800.0,6.82705001]
[1743895338849,0.00834074,1800.1,1800.0,3.61925001]
[1743895339050,0.00834074,1800.1,1800.0,6.82705001]
[1743895339851,0.00834074,1800.1,1800.0,6.82708897]
[1743895342047,0.00834074,1800.1,1800.0,6.07877]
[1743895342244,0.00834074,1800.1,1800.0,6.82706252]
[1743895347051,0.00834074,1800.1,1800.0,6.82727324]
[1743895350756,0.00834074,1800.1,1800.0,6.82743998]
[1743895352564,0.00834074,1800.1,1800.0,6.82750851]
[1743895352857,0.78637074,1800.1,1800.0,0.74873851]
[1743895353052,2.31077074,1800.1,1800.0,0.74873851]
[1743895353757,5.84877074,1800.1,1800.0,0.74873851]
[1743895353965,8.34877074,1800.1,1800.0,0.74873851]
[1743895354462,0.77811,1799.9,1799.8,0.00834074]
[1743895354662,3.98591,1799.9,1799.8,0.00834074]
[1743895355861,6.48591,1799.9,1799.8,0.00834074]
[1743895356065,0.77825,1799.6,1799.4,3.9861]
[1743895356363,0.7398,1799.5,1799.4,0.7783]
[1743895356665,2.2382,1799.5,1799.4,0.7783]
[1743895357159,3.0165,1799.5,1799.3,0.77835]
[1743895357463,2.1966,1799.4,1799.3,0.77835]
[1743895359266,2.1966,1799.4,1799.2,5.47959]
[1743895359562,1.4428,1799.3,1799.2,5.47959]
[1743895360164,1.4428,1799.3,1799.2,4.7012]
[1743895360665,2.22117,1799.3,1799.2,3.2078]
[1743895360963,1.4428,1799.3,1799.2,3.2078]
[1743895361165,2.22117,1799.3,1799.2,3.2078]
[1743895364070,2.22117,1799.3,1799.1,2.2631]
[1743895364071,0.77846,1799.1,1799.0,0.7594]
[1743895364269,0.77851,1799.0,1798.9,0.7579]
[1743895364572,2.24351,1799.0,1798.9,0.7579]
[1743895364869,1.465,1799.0,1798.9,0.7579]
[1743895365669,1.465,1799.0,1798.9,1.53644]
[1743895365866,1.465,1799.0,1798.9,2.99654]
[1743895366468,1.465,1799.0,1798.9,3.73654603]
[1743895366676,1.465,1799.0,1798.9,2.95800603]
[1743895367272,1.465,1799.0,1798.9,2.95800985]
[1743895367974,2.2435,1799.0,1798.9,2.95800985]
[1743895368975,1.465,1799.0,1798.9,2.95800985]
[1743895369175,0.00834074,1799.1,1798.9,3.73654985]
[1743895369474,1.52074074,1799.1,1799.0,2.2365]
[1743895369771,2.29923074,1799.1,1799.0,2.2365]
[1743895370374,1.52074074,1799.1,1799.0,2.2365]
[1743895370762,1.52074074,1799.1,1799.0,3.015]
[1743895370964,2.29920074,1799.1,1799.0,2.2365]
[1743895371180,0.7785,1799.0,1798.9,0.7579]
[1743895371470,0.7785,1799.0,1798.9,1.49738555]
[1743895371774,0.7785,1799.0,1798.9,2.27592555]
[1743895372072,2.29921074,1799.1,1798.9,2.27592555]
[1743895372262,2.29921074,1799.1,1799.0,1.5053]
[1743895372462,2.29921074,1799.1,1799.0,4.7131]
[1743895372963,2.29921074,1799.1,1799.0,5.4609]
[1743895373671,2.29921074,1799.1,1799.0,6.2394]
[1743895373672,0.00834074,1799.1,1799.0,6.2394]
[1743895375971,0.00834074,1799.1,1799.0,6.97914705]
[1743895378171,0.00834074,1799.1,1799.0,6.97950715]
[1743895381276,0.00834074,1799.1,1799.0,6.98090831]
[1743895383176,0.00834074,1799.1,1799.0,6.98155897]
[1743895390477,0.00834074,1799.1,1799.0,6.98314368]
[1743895390873,0.7133,1799.6,1799.5,0.77828]
[1743895391181,0.77818,1799.8,1799.6,0.77821]
[1743895391480,2.22318,1799.8,1799.7,0.74374368]
[1743895393082,1.445,1799.8,1799.7,1.52194368]
[1743895393982,2.22315,1799.8,1799.7,0.7782]
[1743895394186,2.97955,1799.8,1799.7,1.52076268]
[1743895395685,2.97955,1799.8,1799.7,0.74256268]
[1743895396087,2.97955,1799.8,1799.7,0.74212859]
[1743895397687,2.2014,1799.8,1799.7,1.52032859]
[1743895398079,1.445,1799.8,1799.7,1.52032859]
[1743895398285,1.445,1799.8,1799.7,3.02422859]
[1743895401789,1.445,1799.8,1799.7,6.23202859]
[1743895401989,0.74434074,1799.9,1799.8,0.77815]
[1743895402189,1.50524074,1799.9,1799.8,3.03517859]
[1743895402385,0.00834074,1799.9,1799.8,3.03517859]
[1743895403188,0.00834074,1799.9,1799.8,3.03393472]
[1743895404990,0.00834074,1799.9,1799.8,3.033643]
[1743895405788,0.00834074,1799.9,1799.8,6.241443]
[1743895406387,1.4802,1800.3,1800.2,0.77798]
[1743895406587,2.9066,1800.3,1800.2,1.49804777]
[1743895408681,2.9066,1800.3,1800.2,1.49741483]
[1743895412296,2.9066,1800.3,1800.2,1.49730083]
[1743895413596,1.4264,1800.3,1800.2,1.49730083]
[1743895413897,1.4264,1800.3,1800.2,3.65040083]
[1743895414195,1.4264,1800.3,1800.2,4.40111084]
[1743895415701,1.4264,1800.3,1800.2,7.60891084]
[1743895415997,1.4264,1800.3,1800.2,7.6089493]
[1743895417402,1.4264,1800.3,1800.2,3.94779453]
[1743895417596,2.20434,1800.3,1800.2,3.94779453]
[1743895417797,2.20434,1800.3,1800.2,3.94815328]
[1743895417997,2.20434,1800.3,1800.2,4.72613328]
[1743895418405,1.4264,1800.3,1800.2,4.72613328]
[1743895420797,1.4264,1800.3,1800.2,5.47963328]
[1743895420997,1.4264,1800.3,1800.2,6.87513328]
[1743895421504,1.4264,1800.3,1800.2,6.87603113]
[1743895421705,1.4264,1800.3,1800.2,5.48053113]
[1743895423205,1.4264,1800.3,1800.2,5.480714]
[1743895424099,1.4264,1800.3,1800.2,6.898414]
[1743895425307,1.4264,1800.3,1800.2,3.690614]
[1743895426908,1.4264,1800.3,1800.2,3.69113156]
[1743895427404,1.4264,1800.3,1800.2,1.49545156]
[1743895427613,2.20434,1800.3,1800.2,0.74195156]
[1743895428808,2.20434,1800.3,1800.2,1.51993156]
[1743895428809,1.4264,1800.3,1800.2,1.51993156]
[1743895429402,1.4264,1800.3,1800.2,2.25183156]
[1743895429602,1.4264,1800.3,1800.2,4.48233156]
[1743895430500,1.4264,1800.3,1800.2,4.48316285]
[1743895431907,1.4264,1800.3,1800.2,1.52076285]
[1743895432309,1.4264,1800.3,1800.2,1.52125315]
[1743895433112,1.4264,1800.3,1800.2,3.82445315]
[1743895434215,1.4264,1800.3,1800.2,3.82450014]
[1743895436019,1.4264,1800.3,1800.2,3.82475031]
[1743895437318,1.4264,1800.3,1800.2,7.03255031]
[1743895437916,1.4264,1800.3,1800.2,7.0325816]
[1743895438422,1.4264,1800.3,1800.2,4.7293816]
[1743895440922,1.4264,1800.3,1800.2,3.9514016]
[1743895441126,1.4264,1800.3,1800.2,3.95144723]
[1743895441518,1.4264,1800.3,1800.2,4.72942723]
[1743895443023,1.4264,1800.3,1800.2,3.98578]
[1743895443221,2.20434,1800.3,1800.2,3.95142669]
[1743895443415,1.4264,1800.3,1800.2,3.95142669]
[1743895443626,8.94914,1800.3,1800.2,0.74362669]
[1743895443918,11.44914,1800.3,1800.2,0.74362669]
[1743895444725,8.94916,1800.3,1800.2,0.74370911]
[1743895450131,0.77803,1800.1,1800.0,2.92575]
[1743895450333,2.93981,1800.2,1800.0,3.64837922]
[1743895450532,1.44661825,1800.1,1800.0,2.12711825]
[1743895450832,1.44661825,1800.1,1800.0,3.62779027]
[1743895451133,1.44661825,1800.1,1800.0,2.84972027]
[1743895451331,1.44661825,1800.1,1800.0,3.62779027]
[1743895451533,2.22464825,1800.1,1800.0,2.84972027]
[1743895451937,2.22464825,1800.1,1800.0,2.85739112]
[1743895453528,2.93694825,1800.1,1800.0,2.85739112]
[1743895457036,2.93694825,1800.1,1800.0,0.75085462]
[1743895459237,0.77807,1800.0,1799.9,2.93501]
[1743895459437,0.77807,1800.0,1799.9,3.68578312]
[1743895459839,2.93697825,1800.1,1799.9,3.68578312]
[1743895460040,2.93697825,1800.1,1800.0,0.75077312]
[1743895460538,2.93697825,1800.1,1800.0,2.23067312]
[1743895462532,2.93697825,1800.1,1800.0,0.75077312]
[1743895462933,2.93697825,1800.1,1800.0,0.75080549]
[1743895466541,0.77807,1800.0,1799.9,2.92811]
[1743895466737,2.24837,1800.0,1799.9,3.67917438]
[1743895467334,2.24837,1800.0,1799.9,2.90106438]
[1743895467639,2.24837,1800.0,1799.9,3.67917438]
[1743895468035,2.24837,1800.0,1799.9,2.90106438]
[1743895468339,2.24837,1800.0,1799.9,3.67917438]
[1743895469035,2.24837,1800.0,1799.9,2.90106438]
[1743895470239,2.24837,1800.0,1799.9,2.90134894]
[1743895473039,2.24837,1800.0,1799.9,3.67945894]
[1743895473236,1.4703,1800.0,1799.9,3.67945894]
[1743895473437,0.77807,1800.0,1799.9,3.67945894]
[1743895473637,1.49036,1800.1,1799.9,3.67945894]
[1743895473842,1.49036,1800.1,1800.0,0.75134894]
[1743895474944,1.49036,1800.1,1800.0,0.75202767]
[1743895476846,1.49036,1800.1,1800.0,3.05019767]
[1743895477143,0.778,1800.2,1800.1,0.77803]
[1743895477342,0.75741825,1800.2,1800.1,3.74525767]
[1743895477545,0.75741825,1800.2,1800.1,3.74522278]
[1743895477754,21.8058463,1800.4,1800.1,3.74522278]
[1743895477942,0.77798,1800.3,1800.2,0.75199278]
[1743895479947,0.77798,1800.3,1800.2,2.19569278]
[1743895483050,0.77798,1800.3,1800.2,2.1952247]
[1743895483550,2.26588,1800.3,1800.2,2.1952247]
[1743895484049,21.8058463,1800.4,1800.3,0.77794]
[1743895484249,21.8058463,1800.4,1800.3,4.4622647]
[1743895484550,21.8058463,1800.4,1800.3,4.46164112]
[1743895485247,21.8058463,1800.4,1800.3,6.96164112]
[1743895486254,21.8058463,1800.4,1800.3,4.46164112]
[1743895486740,0.00834074,1800.4,1800.3,4.46062236]
[1743895488454,0.00834074,1800.4,1800.3,4.46012837]
[1743895490348,0.00834074,1800.4,1800.3,4.45979067]
[1743895492149,0.00834074,1800.4,1800.3,3.71074]
[1743895492454,0.00834074,1800.4,1800.3,4.45954405]
[1743895493957,0.00834074,1800.4,1800.3,4.45946163]
[1743895494452,0.7519,1800.8,1800.7,0.77777]
[1743895494647,2.2597,1800.8,1800.7,1.52649163]
[1743895494847,3.03742,1800.8,1800.7,0.74872163]
[1743895495752,3.03742,1800.8,1800.7,0.7485375]
[1743895497255,3.03742,1800.8,1800.7,1.5263075]
[1743895497753,2.2597,1800.8,1800.7,1.5263075]
[1743895497953,3.03742,1800.8,1800.7,1.5263075]
[1743895500456,2.2597,1800.8,1800.7,1.5263075]
[1743895501054,2.2597,1800.8,1800.7,1.52611927]
[1743895502756,3.03742,1800.8,1800.7,1.52611927]
[1743895503153,2.2597,1800.8,1800.7,1.52611927]
[1743895503357,21.8058463,1800.9,1800.8,0.77772]
[1743895503556,21.8058463,1800.9,1800.8,2.22572322]
[1743895503954,21.8058463,1800.9,1800.8,3.74762322]
[1743895504449,21.8058463,1800.9,1800.8,3.74705425]
[1743895505054,0.00834074,1800.9,1800.8,3.74705425]
[1743895509057,1.50072074,1800.9,1800.8,0.74783425]
[1743895509257,2.20032074,1800.9,1800.8,0.74783425]
[1743895509858,2.20032074,1800.9,1800.8,0.74810462]
[1743895513458,2.20032074,1800.9,1800.7,0.77775]
[1743895513762,2.20032074,1800.9,1800.8,0.74908048]
[1743895514962,1.42264074,1800.9,1800.8,1.52680048]
[1743895515365,1.42264074,1800.9,1800.8,1.5269622]
[1743895515763,2.20032074,1800.9,1800.8,1.5269622]
[1743895515964,0.00834074,1800.9,1800.8,1.5269622]
[1743895516159,0.00834074,1800.9,1800.8,3.8019622]
[1743895516763,0.78602074,1800.9,1800.8,1.5121422]
[1743895517468,0.78602074,1800.9,1800.8,0.7492422]
[1743895517859,0.78602074,1800.9,1800.8,1.5269622]
[1743895518167,0.00834074,1800.9,1800.8,1.5269622]
[1743895519066,0.78602074,1800.9,1800.8,1.52703026]
[1743895520758,0.76724074,1800.9,1800.8,1.52703026]
[1743895520959,0.76724074,1800.9,1800.8,1.52710584]
[1743895521266,1.54492074,1800.9,1800.8,1.52710584]
[1743895522566,0.76724074,1800.9,1800.8,1.52710584]
[1743895522767,1.54492074,1800.9,1800.8,0.74938584]
[1743895523164,0.76724074,1800.9,1800.8,0.74938584]
[1743895523364,0.76724074,1800.9,1800.8,1.52710584]
[1743895523566,0.76724074,1800.9,1800.8,3.00590584]
[1743895523760,1.54492074,1800.9,1800.8,2.22818584]
[1743895524368,0.76724074,1800.9,1800.8,2.22818584]
[1743895524557,1.54492074,1800.9,1800.8,2.22848839]
[1743895526373,1.54492074,1800.9,1800.8,2.228674]
[1743895526674,1.54492074,1800.9,1800.8,3.006394]
[1743895527177,1.54492074,1800.9,1800.8,2.228674]
[1743895527367,1.54492074,1800.9,1800.8,0.749874]
[1743895528272,1.54492074,1800.9,1800.8,0.75007393]
[1743895528473,0.76724074,1800.9,1800.8,1.52779393]
[1743895529963,0.76724074,1800.9,1800.8,0.77772]
[1743895530175,0.76724074,1800.9,1800.8,1.52798093]
[1743895530573,0.00834074,1800.9,1800.8,1.52798093]
[1743895530774,0.00834074,1800.9,1800.8,2.97718093]
[1743895533479,1.54684074,1800.9,1800.8,2.97718093]
[1743895533679,2.32452074,1800.9,1800.8,2.97736385]
[1743895533981,1.54684074,1800.9,1800.8,2.97736385]
[1743895534177,2.32452074,1800.9,1800.8,2.97736385]
[1743895535775,2.32452074,1800.9,1800.8,2.19964385]
[1743895536279,2.32452074,1800.9,1800.8,2.97736385]
[1743895537275,2.32452074,1800.9,1800.8,0.75044385]
[1743895543478,2.32452074,1800.9,1800.8,2.16944385]
[1743895543977,2.32452074,1800.9,1800.8,4.34086385]
[1743895544582,2.32452074,1800.9,1800.8,3.56314385]
[1743895544771,2.32452074,1800.9,1800.8,3.56350091]
[1743895545177,7.4e-07,1800.9,1800.8,6.84122091]
[1743895545377,7.4e-07,1800.9,1800.8,13.58302091]
[1743895550084,7.4e-07,1800.9,1800.8,13.58017952]
[1743895551785,7.4e-07,1800.9,1800.8,11.08017952]
[1743895553589,7.4e-07,1800.9,1800.8,7.87237952]
[1743895553783,7.4e-07,1800.9,1800.8,11.08017952]
[1743895557395,7.4e-07,1800.9,1800.8,11.07978465]
[1743895559198,7.4e-07,1800.9,1800.8,10.33222]
[1743895559398,7.4e-07,1800.9,1800.8,11.07974058]
[1743895562302,7.4e-07,1800.9,1800.8,11.07974264]
[1743895563406,7.4e-07,1800.9,1800.8,11.07980479]
[1743895564206,7.4e-07,1800.9,1800.8,11.07980594]
[1743895565511,7.4e-07,1800.9,1800.8,7.87200594]
[1743895565703,7.4e-07,1800.9,1800.8,11.07980594]
[1743895566008,7.4e-07,1800.9,1800.8,11.07989198]
[1743895567407,7.4e-07,1800.9,1800.8,1.52539198]
[1743895567605,2.27908074,1800.9,1800.8,0.74767198]
[1743895568211,2.27908074,1800.9,1800.8,0.74822272]
[1743895569210,1.50140074,1800.9,1800.8,0.74822272]
[1743895569709,1.50140074,1800.9,1800.8,0.74846409]
[1743895570609,2.27908074,1800.9,1800.8,0.74846409]
[1743895573411,2.27908074,1800.9,1800.8,0.74883638]
[1743895575214,2.27908074,1800.9,1800.8,0.74899141]
[1743895579020,4.77908074,1800.9,1800.8,0.74899141]
[1743895580317,2.27908074,1800.9,1800.8,0.74899141]
[1743895580612,0.77777,1800.7,1800.6,0.00834074]
[1743895580817,0.77777,1800.7,1800.6,0.75730186]
[1743895581318,2.98527,1800.7,1800.6,0.75730186]
[1743895582426,2.98527,1800.7,1800.6,0.75707587]
[1743895587923,2.98527,1800.7,1800.6,0.75662733]
[1743895588917,8.69307,1800.7,1800.6,0.75662733]
[1743895589116,8.69307,1800.7,1800.6,0.00834074]
[1743895591725,6.19307,1800.7,1800.6,0.00834074]
[1743895593224,0.77785,1800.5,1800.4,3.2078]
[1743895593424,0.77785,1800.5,1800.4,3.95644465]
[1743895593927,3.04245,1800.5,1800.4,3.95644465]
[1743895594619,2.30395,1800.5,1800.4,4.73434465]
[1743895594824,0.77785,1800.5,1800.4,6.23374465]
[1743895595022,0.77783,1800.6,1800.4,6.23374465]
[1743895595221,0.77783,1800.6,1800.5,3.00864767]
[1743895597028,0.77783,1800.6,1800.5,3.00910087]
[1743895598130,0.77783,1800.6,1800.5,3.00924433]
[1743895598829,0.77783,1800.6,1800.5,3.00930872]
[1743895599522,7.45930074,1800.9,1800.5,3.78715872]
[1743895599722,6.74180074,1800.9,1800.6,2.87060872]
[1743895600031,0.7778,1800.7,1800.6,0.7321]
[1743895600229,0.7778,1800.7,1800.6,1.48144999]
[1743895602532,0.7778,1800.7,1800.6,1.4894524]
[1743895603223,0.7778,1800.7,1800.6,2.2672624]
[1743895603425,0.77775,1800.8,1800.7,0.77777]
[1743895603731,0.77775,1800.8,1800.7,0.7573524]
[1743895604132,0.77775,1800.8,1800.7,1.5351224]
[1743895604432,0.77771074,1800.9,1800.7,0.7573524]
[1743895604633,0.77771074,1800.9,1800.8,1.4645524]
[1743895605319,7.4e-07,1800.9,1800.8,2.2422724]
[1743895605522,0.77768074,1800.9,1800.8,1.4645524]
[1743895606131,0.77768074,1800.9,1800.8,1.46448066]
[1743895609635,0.77768074,1800.9,1800.8,0.7072]
[1743895609837,0.77768074,1800.9,1800.8,1.46429267]
[1743895610740,7.4e-07,1800.9,1800.8,2.24201267]
[1743895613541,7.4e-07,1800.9,1800.8,2.24172097]
[1743895618146,1.53190074,1800.9,1800.8,2.24172097]
[1743895619145,1.53190074,1800.9,1800.8,2.24146466]
[1743895623649,1.53190074,1800.9,1800.8,2.24978743]
[1743895623846,2.30958074,1800.9,1800.8,2.24978743]
[1743895624053,2.30958074,1800.9,1800.8,2.24979107]
[1743895624545,2.30958074,1800.9,1800.8,0.76487107]
[1743895625652,1.53190074,1800.9,1800.8,1.54259107]
[1743895625950,1.53190074,1800.9,1800.8,2.26739107]
[1743895626150,2.30958074,1800.9,1800.8,1.48967107]
[1743895626358,3.75808074,1800.9,1800.8,1.48967107]
[1743895626958,2.98040074,1800.9,1800.8,2.26739107]
[1743895628057,1.53190074,1800.9,1800.8,2.26739107]
[1743895628257,1.53190074,1800.9,1800.8,3.77019107]
[1743895629360,1.53190074,1800.9,1800.8,3.77103313]
[1743895630963,7.4e-07,1800.9,1800.8,3.77103313]
[1743895631159,7.4e-07,1800.9,1800.8,3.00532]
[1743895631460,7.4e-07,1800.9,1800.8,3.77109454]
[1743895637366,1.39550074,1800.9,1800.8,3.77109454]
[1743895638466,1.39550074,1800.9,1800.8,3.77044356]
[1743895640366,1.39550074,1800.9,1800.8,3.77045567]
[1743895641866,1.39550074,1800.9,1800.8,1.54285567]
[1743895642272,1.39550074,1800.9,1800.8,1.54299477]
[1743895644169,1.39550074,1800.9,1800.8,1.54302308]
[1743895644860,1.39550074,1800.9,1800.8,0.76530308]
[1743895645065,1.39550074,1800.9,1800.8,1.54302308]
[1743895645769,1.39550074,1800.9,1800.8,1.54307349]
[1743895649063,1.39550074,1800.9,1800.8,0.76535349]
[1743895649269,2.17318074,1800.9,1800.8,0.76535349]
[1743895650871,2.17318074,1800.9,1800.8,1.54307349]
[1743895652370,1.39550074,1800.9,1800.8,1.54307349]
[1743895652864,1.39550074,1800.9,1800.8,3.04807349]